bitfinex/quotes_ETHUSD_20250801
["timestamp","ask_amount","ask_price","bid_price","bid_amount"]
[1754014694883,2.0245,3715.8,3715.2,0.1]
[1754014695084,0.1344,3715.6,3715.2,0.1]
[1754014695470,0.4523,3715.5,3715.2,0.1]
[1754014695792,0.4523,3715.4,3715.2,0.1]
[1754014696192,0.1344,3715.4,3715.2,0.1]
[1754014696366,0.1344,3715.4,3715.2,1.7525]
[1754014696966,0.1344,3715.6,3715.2,0.1]
[1754014697705,0.468,3715.5,3715.2,0.1]
[1754014697852,2.1746,3715.4,3715.2,0.1]
[1754014698193,2.0402,3715.3,3715.2,0.1]
[1754014698355,4.4354,3715.4,3715.2,0.1]
[1754014698790,4.4354,3715.4,3715.2,1.7525]
[1754014698989,4.4354,3715.4,3715.2,0.1]
[1754014699787,4.9034,3715.4,3715.2,0.1]
[1754014699992,0.1344,3715.4,3715.2,0.1]
[1754014700191,4.4354,3715.4,3715.2,0.1]
[1754014700391,0.25106181,3715.3,3715.2,0.1]
[1754014700597,4.4354,3715.8,3715.3,1.6525]
[1754014700767,0.50239266,3715.7,3715.3,1.6525]
[1754014700961,0.50239266,3715.7,3715.2,0.2344]
[1754014700962,0.001,3716.1,3715.4,1.6525]
[1754014701161,0.001,3716.1,3715.4,4.80043632]
[1754014701490,0.5033771,3716.1,3715.4,4.80043632]
[1754014701691,0.25118855,3716.0,3715.5,1.6525]
[1754014701862,0.001,3716.1,3715.5,1.6525]
[1754014702062,0.50352606,3716.1,3715.5,4.34392112]
[1754014702260,0.25126303,3716.0,3715.7,2.69128293]
[1754014702459,0.001,3716.1,3715.8,2.109]
[1754014702691,0.001,3716.1,3715.9,2.6910883]
[1754014703065,0.001,3716.1,3716.0,2.109]
[1754014703986,0.001,3716.1,3716.0,1.6525]
[1754014704204,0.001,3716.1,3715.5,1.6525]
[1754014704519,0.001,3716.1,3715.5,2.57265507]
[1754014704666,0.25236768,3716.1,3715.5,2.57265507]
[1754014704861,0.001,3716.1,3715.5,2.57265507]
[1754014705170,0.001,3716.1,3715.6,1.6525]
[1754014705594,0.50393558,3716.1,3715.6,1.6525]
[1754014705870,0.97104185,3716.0,3715.6,1.6525]
[1754014706086,0.25146823,3715.9,3715.6,1.6525]
[1754014706696,0.25146823,3715.9,3715.7,1.6525]
[1754014706902,0.25146823,3715.8,3715.7,1.6525]
[1754014707400,0.001,3716.1,3715.7,2.2769415]
[1754014707561,0.001,3716.1,3715.8,2.109]
[1754014708096,0.001,3716.1,3715.9,1.6525]
[1754014708306,0.25174891,3716.0,3715.9,1.6525]
[1754014708508,0.50349782,3716.0,3715.9,1.6525]
[1754014709014,0.97149782,3716.0,3715.2,4.401]
[1754014709309,0.50349782,3715.9,3715.4,1.6525]
[1754014709525,0.50349782,3715.8,3715.2,6.0535]
[1754014709714,0.468,3716.0,3715.2,6.0535]
[1754014709715,0.25174891,3715.7,3715.2,6.0535]
[1754014710017,0.25174891,3715.6,3715.3,2.109]
[1754014710314,0.001,3716.1,3715.2,5.0522]
[1754014710516,0.5038397,3716.0,3715.4,2.109]
[1754014710694,0.001,3716.1,3715.4,2.109]
[1754014710695,0.5038397,3715.9,3715.4,0.4565]
[1754014710900,0.25191978,3715.8,3715.5,2.109]
[1754014711100,0.1344,3716.0,3715.6,1.6525]
[1754014711307,0.1344,3716.0,3715.7,1.6525]
[1754014711308,0.50384626,3715.9,3715.7,1.6525]
[1754014711602,0.25193198,3715.8,3715.6,0.4565]
[1754014711810,0.1344,3716.0,3715.6,0.4565]
[1754014712123,0.001,3716.1,3715.8,0.1344]
[1754014712612,0.50482839,3716.1,3715.9,1.6525]
[1754014712811,0.25193118,3716.0,3715.8,0.1344]
[1754014713010,0.001,3716.1,3715.8,0.1344]
[1754014713223,0.001,3716.1,3715.2,5.5087]
[1754014713407,0.468,3716.0,3715.5,0.1344]
[1754014713596,0.25188075,3715.9,3715.5,0.1344]
[1754014713784,0.468,3715.8,3715.5,0.1344]
[1754014713990,0.971796,3715.7,3715.5,0.1344]
[1754014714218,0.50381075,3715.6,3715.5,0.1344]
[1754014714421,0.50381075,3715.6,3715.2,0.2344]
[1754014714655,0.1344,3715.8,3715.2,0.1]
[1754014714656,0.97181075,3715.5,3715.2,0.1]
[1754014714795,0.50381075,3715.4,3715.2,0.1]
[1754014714997,0.25189808,3715.3,3715.2,0.1]
[1754014715725,0.25192008,3715.3,3715.2,0.1]
[1754014716035,0.25192008,3715.3,3715.2,1.7525]
[1754014721303,0.25192008,3715.3,3715.2,0.1]
[1754014721840,0.25192008,3715.3,3715.2,1.7525]
[1754014725341,0.25192008,3715.3,3715.2,2.209]
[1754014725651,0.25192008,3715.3,3715.2,5.21703692]
[1754014725851,0.25192008,3715.3,3715.2,5.67353692]
[1754014726523,0.001,3715.4,3715.3,2.69157268]
[1754014726831,0.2530784,3715.4,3715.3,4.77657268]
[1754014727141,0.2530784,3715.4,3715.3,4.8034884]
[1754014727340,0.2530784,3715.4,3715.3,6.8667423]
[1754014727551,0.2530784,3715.4,3715.3,6.83982658]
[1754014727753,0.2530784,3715.4,3715.3,6.97422658]
[1754014728260,0.001,3715.4,3715.3,6.97422658]
[1754014729064,0.001,3715.4,3715.3,9.97422658]
[1754014730360,0.001,3715.4,3715.3,14.26922658]
[1754014736296,0.25193936,3716.4,3716.0,2.69106566]
[1754014736457,0.001,3716.5,3716.4,2.69077601]
[1754014736634,0.25285569,3716.5,3716.4,2.69077601]
[1754014736835,0.25285569,3716.5,3716.4,9.06877601]
[1754014737099,0.25285569,3716.5,3716.4,9.20317601]
[1754014737276,0.472,3717.6,3716.8,2.69048643]
[1754014737477,0.27174174,3716.9,3716.8,6.98348643]
[1754014737850,0.27174174,3716.9,3716.8,9.20288643]
[1754014738749,0.02,3716.9,3716.8,9.20288643]
[1754014739337,0.02,3716.9,3716.8,12.20288643]
[1754014739586,0.02,3716.9,3716.8,12.97577822]
[1754014741947,0.02,3716.9,3716.8,13.18135179]
[1754014742555,0.02,3716.9,3716.8,13.73135179]
[1754014742959,1e-08,3716.9,3716.8,13.73135179]
[1754014743897,1e-08,3716.9,3716.8,13.72835179]
[1754014744184,0.00100001,3716.9,3716.8,13.72835179]
[1754014744483,0.00100001,3716.9,3716.8,25.21326154]
[1754014746446,0.00100001,3716.9,3716.8,24.77186154]
[1754014746704,0.02,3717.9,3717.1,3.0]
[1754014746849,0.472,3717.6,3717.2,4.289]
[1754014747049,0.472,3717.6,3717.5,0.1344]
[1754014747276,0.472,3717.6,3717.5,4.4234]
[1754014747698,1.9383,3717.6,3717.5,4.4234]
[1754014747866,0.472,3717.6,3717.5,4.4234]
[1754014748050,0.472,3717.6,3717.5,7.11337982]
[1754014748251,0.492,3717.9,3717.7,2.68982778]
[1754014748562,0.02,3717.9,3717.8,2.68976276]
[1754014748764,0.02,3717.9,3715.2,2.79158163]
[1754014749085,3.25161438,3717.8,3716.7,0.1344]
[1754014749288,0.1344,3717.0,3716.5,4.4224]
[1754014749787,0.472,3716.9,3716.5,0.1344]
[1754014749986,0.472,3716.8,3716.7,0.1344]
[1754014751089,0.02,3717.9,3716.7,0.1344]
[1754014751286,0.472,3717.1,3716.8,4.288]
[1754014751483,1.4663,3717.3,3717.0,0.1344]
[1754014751890,1.4663,3717.8,3716.8,5.9316]
[1754014752058,0.7227054,3717.7,3717.2,0.1344]
[1754014752255,0.2497454,3717.6,3717.2,4.288]
[1754014752593,0.02,3717.9,3717.6,0.1344]
[1754014752889,0.02,3717.9,3717.5,4.4224]
[1754014753196,0.472,3717.8,3717.7,0.1344]
[1754014753350,2.41004649,3717.8,3716.2,1.6436]
[1754014753688,0.1344,3717.5,3716.9,0.1344]
[1754014754064,2.21617041,3717.4,3716.9,0.1344]
[1754014754290,1.9383,3717.3,3716.9,0.1344]
[1754014754497,0.20995978,3717.2,3716.7,4.288]
[1754014754655,0.1344,3717.0,3716.7,4.288]
[1754014755165,1.9383,3716.9,3716.6,4.288]
[1754014755358,1.9383,3716.8,3716.6,4.288]
[1754014755556,1.9383,3716.7,3716.5,0.1344]
[1754014755778,0.472,3716.6,3716.5,0.1344]
[1754014755980,0.472,3716.6,3716.5,4.4224]
[1754014756582,1.6007,3717.0,3716.5,4.4224]
[1754014756778,2.70974443,3717.9,3716.5,4.288]
[1754014756982,0.1344,3717.4,3716.9,0.1344]
[1754014757180,1.8971,3717.3,3716.9,0.1344]
[1754014757403,4.6142354,3717.2,3715.5,1.6314]
[1754014757599,0.27097444,3717.8,3716.4,0.1344]
[1754014757600,0.25126655,3717.1,3716.4,0.1344]
[1754014757770,0.1344,3716.7,3716.1,0.1344]
[1754014758096,1.8971,3716.6,3716.1,0.1344]
[1754014758300,1.8971,3716.5,3716.1,0.1344]
[1754014758463,1.8971,3716.4,3716.1,0.1344]
[1754014758664,1.4663,3716.4,3716.1,0.1344]
[1754014758962,0.4308,3716.3,3716.1,0.1344]
[1754014759493,0.4308,3716.2,3716.1,0.1344]
[1754014762516,1.6007,3716.7,3716.1,0.1344]
[1754014762802,0.4308,3716.5,3716.1,0.1344]
[1754014763018,0.16007,3716.6,3716.1,0.1344]
[1754014763019,0.4308,3716.4,3716.1,0.1344]
[1754014763301,0.4308,3716.3,3716.1,0.1344]
[1754014765102,0.16007,3716.6,3716.1,0.1344]
[1754014765264,1.6007,3716.7,3716.1,0.1344]
[1754014765265,0.251502,3716.5,3716.1,7.96451042]
[1754014765466,0.5652,3716.9,3716.4,0.1344]
[1754014765665,2.34696528,3716.8,3715.8,5.9184]
[1754014765962,0.1344,3716.6,3716.1,0.1364]
[1754014766165,0.25149907,3716.6,3716.2,1.6314]
[1754014766366,0.25149907,3716.6,3716.4,0.1344]
[1754014766598,0.1344,3717.0,3716.5,1.6314]
[1754014766898,0.50298942,3716.9,3716.5,1.6314]
[1754014767061,0.50298942,3716.8,3716.5,1.6314]
[1754014767267,0.25149471,3716.7,3716.5,1.6314]
[1754014767476,0.25149471,3716.6,3716.5,1.6314]
[1754014767679,0.4308,3716.6,3716.1,0.002]
[1754014767888,0.68229471,3716.5,3716.3,0.1344]
[1754014768100,0.4308,3716.5,3716.3,0.1344]
[1754014768303,0.4308,3716.5,3715.1,0.022]
[1754014768304,0.19784,3716.5,3715.1,0.022]
[1754014768467,0.90273894,3716.4,3715.3,0.4487]
[1754014768667,0.1344,3716.8,3715.8,3.0]
[1754014768866,0.25143572,3717.2,3715.9,4.31391138]
[1754014769066,0.50287,3717.1,3716.7,0.1344]
[1754014769398,0.50287,3717.0,3716.7,1.6314]
[1754014769607,0.50285728,3716.9,3716.8,0.1344]
[1754014769990,0.50285728,3716.9,3716.8,1.7658]
[1754014770302,0.50285728,3716.9,3716.8,2.2145]
[1754014770883,0.50285728,3716.9,3716.8,0.1344]
[1754014771089,0.50285728,3716.9,3716.8,4.90498643]
[1754014771432,0.12,3717.5,3717.0,2.69030808]
[1754014771628,0.50288194,3717.4,3717.0,2.69030808]
[1754014771837,0.50288194,3717.3,3717.2,2.69019692]
[1754014771990,0.50288194,3717.3,3717.2,9.05729692]
[1754014772191,0.50288194,3717.3,3717.2,10.36645564]
[1754014772411,0.50288194,3717.3,3717.2,7.67625872]
[1754014772614,0.50288194,3717.3,3717.2,6.0528]
[1754014772922,0.12,3717.5,3717.2,6.0528]
[1754014773082,0.12,3717.5,3717.4,0.1344]
[1754014773287,1.05369119,3717.5,3717.4,0.1344]
[1754014773486,1.05369119,3717.5,3717.1,4.287]
[1754014773802,1.05369119,3717.5,3717.1,6.0528]
[1754014773803,0.5508,3717.5,3717.1,6.0528]
[1754014774322,0.50305968,3717.4,3717.1,6.0528]
[1754014774483,0.5508,3717.5,3717.1,6.0528]
[1754014774686,0.50305976,3717.4,3717.1,6.0528]
[1754014774885,0.25152989,3717.3,3717.1,6.0528]
[1754014775118,0.5508,3717.5,3717.1,6.0528]
[1754014775318,0.50317466,3717.4,3717.1,6.0528]
[1754014775523,0.50317466,3717.3,3717.1,6.0528]
[1754014775733,0.12,3717.5,3717.2,1.6314]
[1754014776023,0.12,3717.5,3717.1,4.4214]
[1754014776024,0.6231735,3717.5,3717.3,1.6314]
[1754014776224,0.5031735,3717.4,3717.3,0.1344]
[1754014776781,0.5031735,3717.4,3717.3,1.7658]
[1754014777898,0.50327199,3717.4,3717.3,1.7658]
[1754014778734,0.93407199,3717.4,3717.1,4.287]
[1754014778920,0.93407199,3717.4,3717.1,4.4214]
[1754014778921,0.93407199,3717.3,3717.1,4.4214]
[1754014779123,0.2602672,3717.3,3717.1,4.4214]
[1754014779439,0.2602672,3717.3,3717.1,0.1344]
[1754014779741,0.12,3717.5,3717.1,0.1344]
[1754014779949,0.5035225,3717.4,3717.1,0.1344]
[1754014780104,0.4308,3717.4,3717.1,0.1344]
[1754014780505,0.50348146,3717.3,3717.1,0.1344]
[1754014780708,0.4308,3717.4,3717.1,0.1344]
[1754014780941,0.50349039,3717.3,3717.1,0.1344]
[1754014781146,0.50349039,3717.2,3717.1,0.1344]
[1754014781441,0.50349039,3717.2,3717.1,1.7658]
[1754014784723,0.50349039,3717.2,3717.1,4.90476929]
[1754014785513,0.50349039,3717.2,3717.1,6.092887]
[1754014785852,0.12,3717.5,3717.4,2.69005218]
[1754014786144,0.12,3717.5,3717.4,2.8513527]
[1754014786359,0.12,3717.5,3717.4,4.84835218]
[1754014786947,0.12,3717.5,3717.4,12.67139973]
[1754014787718,0.12,3717.5,3717.4,12.8733842]
[1754014787918,0.001,3717.5,3717.4,9.52614755]
[1754014788145,0.001,3717.5,3717.4,0.1344]
[1754014788317,0.001,3717.5,3717.4,4.39315218]
[1754014788516,0.001,3717.5,3717.4,4.84835218]
[1754014788722,0.001,3717.5,3717.4,2.1583]
[1754014788924,0.001,3717.5,3717.4,13.85386644]
[1754014789350,0.001,3717.5,3717.4,14.05922574]
[1754014789551,0.001,3717.5,3717.4,17.05922574]
[1754014789754,0.02,3717.9,3717.6,2.6898504]
[1754014789937,0.02,3717.9,3717.8,10.51281031]
[1754014790113,0.02,3717.9,3717.8,13.4200542]
[1754014790318,0.02,3717.9,3717.8,15.4439542]
[1754014790513,0.02,3717.9,3717.8,14.9887542]
[1754014790716,0.02,3718.9,3718.8,2.68903947]
[1754014791026,0.02,3718.9,3718.8,7.10843947]
[1754014791258,0.14496557,3719.6,3719.5,2.6885334]
[1754014791425,0.14496557,3719.6,3719.5,7.1079334]
[1754014791626,0.14496557,3719.6,3719.5,1.7031]
[1754014791870,0.14496557,3719.6,3719.5,5.9881]
[1754014792018,0.14496557,3719.6,3719.5,9.1318334]
[1754014792219,0.14496557,3719.6,3719.5,5.62561674]
[1754014792461,0.14496557,3719.6,3719.5,5.8537]
[1754014792761,0.14496557,3719.6,3719.5,6.50945365]
[1754014793362,0.02,3719.9,3719.8,5.68831657]
[1754014793659,0.02,3719.9,3719.8,10.52331657]
[1754014793864,0.00980229,3720.4,3720.3,14.15208554]
[1754014794167,0.00980229,3720.4,3720.3,1.68401554]
[1754014794334,0.02,3722.9,3720.3,5.8527]
[1754014794335,0.471,3721.6,3720.3,5.8527]
[1754014794520,0.471,3721.5,3720.3,17.77203027]
[1754014794850,0.471,3721.8,3720.4,2.0239]
[1754014795160,0.471,3721.8,3720.7,2.68765593]
[1754014795358,0.471,3721.8,3720.5,4.284]
[1754014795359,0.471,3721.8,3720.5,6.3079]
[1754014795566,0.471,3721.8,3720.5,6.97179879]
[1754014795768,0.471,3721.8,3720.6,4.71158956]
[1754014795951,0.471,3721.8,3720.6,2.0239]
[1754014796126,0.02689779,3721.7,3720.1,4.25678542]
[1754014796321,0.471,3721.1,3720.2,1.5687]
[1754014796674,0.471,3721.1,3720.0,4.284]
[1754014796817,0.471,3720.8,3720.0,5.8527]
[1754014797021,1.8342,3720.8,3719.7,2.68838884]
[1754014797230,1.8342,3720.8,3719.6,5.8517]
[1754014797456,0.20542,3720.9,3719.5,0.20116535]
[1754014797457,3.15867241,3720.7,3719.5,0.20116535]
[1754014797646,1.8342,3720.6,3719.1,1.5687]
[1754014797834,1.8342,3720.5,3719.2,2.68874826]
[1754014798239,1.8342,3720.4,3719.1,4.48473053]
[1754014798447,0.02,3720.9,3718.6,0.4552]
[1754014798448,4.522163,3720.3,3718.6,2.68918305]
[1754014798649,1.8342,3720.2,3718.8,1.5687]
[1754014798821,1.8342,3720.2,3718.8,1.77521442]
[1754014798822,0.18342,3720.1,3718.8,1.77521442]
[1754014799022,0.471,3720.1,3719.2,2.6886883]
[1754014799266,0.471,3720.1,3719.3,3.0]
[1754014799420,0.471,3720.1,3719.3,2.68867797]
[1754014799855,0.471,3720.1,3719.4,4.25729144]
[1754014800164,1.3632,3720.4,3719.4,4.25729436]
[1754014800378,4.303,3720.9,3719.5,1.59558533]
[1754014800379,1.3632,3720.8,3719.5,1.59558533]
[1754014800579,0.471,3720.7,3716.7,0.13841441]
[1754014800719,0.471,3720.7,3718.1,0.21844035]
[1754014800720,30.0,3719.9,3718.1,0.21844035]
[1754014800924,0.471,3721.3,3719.6,11.46413027]
[1754014801229,0.471,3721.3,3719.7,6.5469]
[1754014801422,0.471,3721.3,3719.8,5.0239]
[1754014801623,0.02,3721.9,3719.8,2.0239]
[1754014801823,2.68694413,3721.7,3719.9,1.5687]
[1754014802121,0.02,3721.9,3720.0,4.531]
[1754014802122,0.471,3721.6,3720.0,4.531]
[1754014802327,0.02,3721.9,3720.2,11.46413027]
[1754014802586,0.001,3721.2,3721.0,2.68743318]
[1754014802727,0.001,3721.2,3721.1,7.24525115]
[1754014802922,0.001,3721.2,3721.1,11.00885508]
[1754014803147,0.001,3721.2,3721.1,9.37567738]
[1754014803348,0.001,3721.2,3721.1,6.6883]
[1754014803536,0.001,3721.2,3721.1,4.84567738]
[1754014803742,0.001,3721.2,3721.1,9.37467738]
[1754014803955,0.001,3721.2,3721.1,6.6873]
[1754014804771,0.25062169,3721.2,3721.1,2.1583]
[1754014804971,0.50004057,3721.2,3721.1,1.7031]
[1754014805280,0.50004057,3721.2,3721.1,6.6813]
[1754014805571,0.001,3721.2,3721.1,6.6813]
[1754014805773,0.001,3721.2,3721.1,1.7031]
[1754014805940,0.001,3721.2,3721.1,6.2221]
[1754014806143,0.001,3721.2,3721.1,6.6773]
[1754014806744,0.001,3721.2,3721.1,6.2221]
[1754014807655,0.001,3721.2,3721.1,6.2211]
[1754014807887,0.001,3721.2,3721.1,7.24490179]
[1754014808256,0.001,3721.2,3721.1,6.78970179]
[1754014808641,0.001,3721.2,3721.1,2.27170179]
[1754014808957,0.001,3721.2,3721.1,6.2121]
[1754014809168,0.001,3721.2,3721.1,1.7031]
[1754014809554,0.001,3721.2,3721.1,4.6404]
[1754014809746,0.472,3721.2,3721.1,4.6404]
[1754014810180,0.72105352,3721.2,3721.1,4.504]
[1754014810477,0.72105352,3721.2,3720.0,9.60436678]
[1754014810478,0.72105352,3721.2,3721.0,0.1344]
[1754014810680,0.72006527,3721.1,3721.0,0.1344]
[1754014810843,0.72006527,3721.1,3721.0,4.6374]
[1754014811251,0.72006527,3721.1,3721.0,4.503]
[1754014812142,0.72006527,3721.1,3720.8,0.1344]
[1754014812357,0.72006527,3721.0,3720.9,4.503]
[1754014812560,0.72006527,3721.0,3720.8,0.1344]
[1754014812561,0.24906527,3721.0,3719.9,1.5687]
[1754014812791,0.72006527,3720.9,3720.7,0.1344]
[1754014812990,0.0393,3721.2,3720.6,0.1344]
[1754014812991,0.72006527,3720.8,3720.6,0.1344]
[1754014813293,0.0393,3721.2,3720.6,0.1344]
[1754014813294,0.72006527,3720.7,3720.6,0.1344]
[1754014813702,0.72006527,3720.7,3720.6,4.6284]
[1754014813993,0.72006527,3720.7,3720.6,4.494]
[1754014814494,0.72006527,3720.7,3717.8,2.84]
[1754014814805,0.1344,3720.5,3720.0,0.1344]
[1754014815026,0.72060145,3720.4,3720.1,4.489]
[1754014815187,0.001,3721.2,3720.2,1.5687]
[1754014815188,0.24960145,3720.3,3720.2,1.5687]
[1754014815370,0.24960145,3720.3,3720.2,2.30887]
[1754014817013,0.24960145,3720.3,3720.2,0.74017]
[1754014817471,0.24960145,3720.3,3720.2,4.6174]
[1754014818277,0.24960145,3720.3,3720.2,0.1344]
[1754014818479,0.24960145,3720.3,3720.2,4.6154]
[1754014818915,0.24960145,3720.3,3720.2,0.1344]
[1754014819114,0.24960145,3720.3,3720.2,6.2722]
[1754014819585,0.24960145,3720.3,3720.2,4.6154]
[1754014820609,0.24960145,3720.3,3720.2,6.2722]
[1754014821526,0.24960145,3720.3,3720.2,4.6154]
[1754014822431,0.24960145,3720.3,3720.2,0.1344]
[1754014822651,0.71440145,3720.3,3720.2,0.1344]
[1754014822995,0.71440145,3720.3,3720.2,4.6024]
[1754014823429,0.71440145,3720.3,3720.2,4.468]
[1754014823635,0.71440145,3720.3,3720.1,0.1344]
[1754014823836,0.24960145,3720.2,3720.1,0.1344]
[1754014824129,0.24960145,3720.2,3720.1,4.5984]
[1754014824740,0.24960145,3720.2,3720.1,6.2552]
[1754014825310,0.24960145,3720.2,3720.1,20.73831667]
[1754014825643,0.24960145,3720.2,3720.1,9.7398864]
[1754014827740,0.24960145,3720.2,3720.1,6.57508662]
[1754014827942,0.24960145,3720.2,3720.1,9.2631864]
[1754014828253,0.24960145,3720.2,3720.1,6.57508662]
[1754014828851,0.24960145,3720.2,3720.1,9.7288864]
[1754014829354,0.4658,3721.2,3720.4,2.68786013]
[1754014829559,0.25130157,3721.1,3720.5,6.64438758]
[1754014829857,0.25130157,3721.0,3720.9,0.1344]
[1754014830064,0.25130157,3721.0,3720.9,4.5824]
[1754014830728,0.25130157,3721.0,3720.9,8.92672183]
[1754014830928,0.25130157,3721.0,3720.9,10.55385488]
[1754014831349,0.25130157,3721.0,3720.9,22.56798515]
[1754014832354,0.001,3721.2,3721.1,3.23737738]
[1754014832551,0.001,3721.2,3721.1,10.70525115]
[1754014832862,0.001,3721.2,3721.1,12.93527738]
[1754014833157,0.001,3721.2,3721.1,15.66011014]
[1754014833756,0.001,3721.2,3721.1,11.21911014]
[1754014833946,0.001,3721.2,3721.1,15.10711014]
[1754014834330,0.001,3721.2,3721.1,15.10511014]
[1754014834678,0.001,3721.2,3721.1,15.10411014]
[1754014835590,0.001,3721.2,3721.1,15.10111014]
[1754014836554,0.001,3721.2,3721.1,11.21911014]
[1754014836756,0.001,3721.2,3721.1,15.65111014]
[1754014838675,0.001,3721.2,3721.1,15.64111014]
[1754014839295,0.001,3721.2,3721.1,11.21911014]
[1754014839497,0.001,3721.2,3721.1,10.66911014]
[1754014839708,0.001,3721.2,3721.1,10.20341014]
[1754014839993,0.001,3721.2,3721.1,14.62141014]
[1754014840196,0.001,3721.2,3721.1,15.08711014]
[1754014841808,0.02,3721.9,3721.8,14.15100221]
[1754014841978,0.02,3721.9,3721.8,20.24879834]
[1754014842183,0.02,3721.9,3721.8,9.16186807]
[1754014842425,0.02,3721.9,3721.8,14.59156807]
[1754014843509,0.02,3721.9,3721.8,14.04356807]
[1754014846575,0.02,3721.9,3721.8,14.59356807]
[1754014848690,0.02,3721.9,3721.8,14.72541992]
[1754014848878,0.001,3722.3,3722.2,2.6865832]
[1754014849098,0.001,3722.3,3722.2,10.6365832]
[1754014849302,0.001,3722.3,3722.2,12.8509832]
[1754014849475,0.4517,3723.3,3722.8,2.6861502]
[1754014849678,0.4517,3723.3,3722.8,7.0851502]
[1754014849898,0.4557,3723.5,3722.8,9.8143888]
[1754014850497,0.004,3723.5,3722.8,9.8143888]
[1754014851339,0.004,3723.5,3722.8,13.8266888]
[1754014852139,0.004,3723.5,3722.8,8.4153888]
[1754014852342,0.4517,3723.3,3722.8,11.1906888]
[1754014852706,0.004,3723.5,3722.8,12.8083888]
[1754014853358,0.004,3723.5,3722.8,8.4153888]
[1754014853524,0.4517,3723.4,3722.8,12.8063888]
[1754014853845,0.004,3723.5,3722.8,6.7976888]
[1754014854021,0.4517,3723.2,3722.8,11.1856888]
[1754014854215,0.004,3723.5,3722.8,12.8033888]
[1754014854428,0.004,3723.5,3722.8,6.7976888]
[1754014854429,0.4517,3723.3,3722.8,6.7976888]
[1754014854644,0.4517,3723.1,3722.8,11.1856888]
[1754014854803,0.4517,3723.1,3722.8,11.1846888]
[1754014855009,0.004,3723.5,3722.8,6.7976888]
[1754014855210,0.4557,3723.5,3722.8,12.8003888]
[1754014855411,0.4517,3723.3,3722.8,12.8003888]
[1754014856154,0.021,3722.9,3722.8,6.7976888]
[1754014856307,0.4727,3722.9,3722.8,11.1806888]
[1754014856509,0.021,3722.9,3722.8,11.1806888]
[1754014856707,0.021,3722.9,3722.8,12.7973888]
[1754014857133,0.021,3722.9,3722.8,8.4153888]
[1754014857469,0.021,3722.9,3722.8,6.7976888]
[1754014857678,0.4727,3722.9,3722.8,5.8205502]
[1754014857981,0.4727,3722.9,3722.8,10.1985502]
[1754014858880,0.4727,3722.9,3722.8,0.1344]
[1754014859052,0.4727,3722.9,3722.8,4.5124]
[1754014859650,0.4727,3722.9,3722.8,4.5104]
[1754014860239,0.4727,3722.9,3722.8,0.1344]
[1754014860440,0.4727,3722.9,3722.8,4.5084]
[1754014860982,0.4727,3722.9,3722.8,0.1344]
[1754014861188,0.4727,3722.9,3722.8,4.5074]
[1754014861534,0.4727,3722.9,3722.8,4.5054]
[1754014861877,0.4727,3722.9,3722.8,4.369]
[1754014863642,0.4727,3722.9,3722.7,0.1344]
[1754014863988,0.021,3722.9,3722.0,7.80118841]
[1754014864285,0.021,3722.9,3722.6,0.1344]
[1754014864583,0.4517,3722.8,3722.7,4.363]
[1754014865805,0.4517,3722.8,3722.7,4.36]
[1754014866541,0.7025249,3722.8,3722.4,0.1344]
[1754014866724,0.2508249,3722.7,3722.4,0.1344]
[1754014866929,0.7025249,3722.6,3721.6,2.68696717]
[1754014867129,0.7025249,3722.5,3722.1,0.1344]
[1754014867341,0.2508249,3722.4,3722.2,4.356]
[1754014867649,0.4517,3722.3,3722.2,4.356]
[1754014868307,0.4517,3722.3,3722.1,0.1344]
[1754014868509,0.4517,3722.3,3722.2,4.353]
[1754014869336,0.70274885,3722.3,3722.2,4.353]
[1754014870906,0.70274885,3722.3,3722.1,0.1344]
[1754014871119,0.4517,3722.3,3722.2,4.348]
[1754014871318,0.7028277,3722.3,3722.2,4.348]
[1754014871807,0.7028277,3722.3,3722.2,4.345]
[1754014873211,0.7028277,3722.3,3721.8,0.1344]
[1754014873444,0.7028277,3722.2,3721.9,4.341]
[1754014873749,0.4517,3722.1,3721.9,4.341]
[1754014873950,0.1344,3722.4,3722.0,7.80118841]
[1754014874111,0.25123322,3722.3,3722.0,9.41888841]
[1754014874315,0.001,3722.7,3721.5,4.6177]
[1754014874316,0.702908,3722.2,3721.5,4.6177]
[1754014874570,0.4517,3722.1,3721.0,6.459]
[1754014874857,0.4517,3722.1,3721.3,0.1344]
[1754014874858,0.1344,3721.8,3721.3,0.1344]
[1754014875056,0.4517,3721.7,3721.3,2.82158272]
[1754014875352,0.70293797,3721.6,3721.4,4.341]
[1754014875516,0.1344,3721.8,3721.4,14.85622075]
[1754014875517,0.25123797,3721.5,3721.4,14.85622075]
[1754014875718,0.25114525,3721.5,3721.4,16.64337171]
[1754014875929,0.5861,3722.3,3721.5,2.6870644]
[1754014876133,0.50224702,3722.2,3721.6,1.6177]
[1754014876355,0.25112351,3722.1,3721.7,4.4734]
[1754014876653,0.72192351,3722.0,3721.7,4.4734]
[1754014876861,0.25112351,3721.9,3721.7,6.1406]
[1754014877020,0.4708,3722.0,3721.7,6.1406]
[1754014877222,0.25104093,3721.9,3721.7,6.1406]
[1754014877448,0.4708,3722.0,3721.7,6.1406]
[1754014878049,0.1344,3722.3,3721.8,9.46838841]
[1754014878359,0.72174775,3722.2,3721.9,4.334]
[1754014878531,0.25094775,3722.1,3721.9,4.334]
[1754014879069,0.25094775,3722.1,3721.9,6.0012]
[1754014879271,0.4708,3722.0,3721.6,0.1344]
[1754014879416,0.25094775,3721.9,3720.9,0.002]
[1754014879952,0.4708,3721.8,3721.0,4.349]
[1754014880181,0.34085559,3721.7,3721.0,4.349]
[1754014880376,0.34085559,3721.7,3720.9,0.002]